Workbook

Sheet Page 55
A1: XYZ CORP BALANCE SHEET
A2: Assets | D2: Liabilities and equity
A3: Short-term assets | D3: Short-term liabilities
A4: Cash | B4: 1000 | D4: Accounts payable | E4: 1500
A5: Marketable securities | B5: 1500 | D5: Taxes payable | E5: 200
A6: Inventories | B6: 1500 | D6: Current portion of long-term debt | E6: 1000
A7: Accounts receivable | B7: 3000 | D7: Short-term debt | E7: 500
A9: Fixed assets | D9: Long-term debt | E9: 1500
A10: Land | B10: 150 | D10: Pension liabilities | E10: 800
A11: Plant, property and equipment at cost | B11: 2500
A12: Minus accumulated depreciation | B12: -700 | D12: Preferred stock | E12: 200
A13: Net fixed assets | D13: Minority interest | E13: 100
D15: Equity
A16: Goodwill | B16: 1000 | D16: Stock at par | E16: 1000
D17: Accumulated retained earnings | E17: 3500
D18: Stock repurchases | E18: =-350 -> -350
A19: Total assets | B19: =SUM(B3:B16) -> 9950 | D19: Total liabilities and equity | E19: =SUM(E3:E18) -> 9950

Sheet Page 56
A1: XYZ BALANCE SHEET Operational current liabilities moved to left side All financial liabilities in one account on right side
A2: Assets | D2: Liabilities and equity
A3: Liquid assets (cash + marketable securities) | B3: 2500 | D3: Financial debt
D4: Current portion of long-term debt | E4: 1000
A5: Current assets, operational | D5: Short-term debt | E5: 500
A6: Inventories | B6: 1500 | D6: Long-term debt | E6: 1500
A7: Accounts receivable | B7: 3000 | D7: Total financial debt | E7: =SUM(E4:E6) -> 3000
A8: Minus, current liabilities, operational
A9: Accounts payable | B9: -1500
A10: Taxes payable | B10: -200 | D10: Pension liabilities | E10: 800
A11: Net working capital | B11: =SUM(B6:B10) -> 2800 | C11: =getformula(B11) -> <-- =SUM(B6:B10)
D12: Preferred stock | E12: 200
A13: Fixed assets | B13: 1950 | D13: Minority interest | E13: 100
A15: Goodwill | B15: 1000 | D15: Equity | E15: 4150
A17: Left-hand side of rewritten balance sheet | B17: =B11+B13+B15+SUM(B3:B4) -> 8250 | C17: =getformula(B17) -> <-- =B11+B13+B15+SUM(B3:B4) | D17: Right-hand side of rewritten balance sheet | E17: =E7+E10+SUM(E12:E15) -> 8250 | F17: =getformula(E17) -> <-- =E7+E10+SUM(E12:E15)

Sheet Page 56, bottom
A1: XYZ ENTERPRISE VALUE BALANCE SHEET
A2: Assets | D2: Liabilities and equity
A3: Net working capital | B3: 2800 | D3: Total financial debt | E3: 3000
D4: Minus liquid assets | E4: -2500
A5: Fixed assets | B5: 1950 | D5: Net debt | E5: =E3+E4 -> 500
A7: Goodwill | B7: 1000 | D7: Pension liabilities | E7: 800
D9: Preferred stock | E9: 200
D10: Minority interest | E10: 100
D12: Equity | E12: 4150
A14: Enterprise value | B14: =B3+B5+B7 -> 5750 | C14: =getformula(B14) -> <-- =B3+B5+B7 | D14: Enterprise value | E14: =E5+E7+SUM(E9:E12) -> 5750 | F14: =getformula(E14) -> <-- =E5+E7+SUM(E9:E12)

Sheet Page 57
A1: CATERPILLAR CORP., BALANCE SHEET 31 December 2011
A2: Current assets | D2: Current liabilities
A3: Cash and cash equivalents | B3: 3057000 | D3: Accounts payable | E3: 16946000
A4: Short-term investments | D4: Short-term debt | E4: 9648000
A5: Net receivables | B5: 19533000 | D5: Other current liabilities | E5: 1967000
A6: Inventory | B6: 14544000 | D6: Total current liabilities | E6: =SUM(E3:E5) -> 28561000
A7: Other current assets | B7: 994000
A8: Total current assets | B8: =SUM(B3:B7) -> 38128000 | D8: Long-term debt | E8: 24944000
D9: Other liabilities | E9: 14539000
A10: Long-term investments | B10: 13211000
A11: Property, plant and equipment (net) | B11: 14395000 | D11: Minority interest | E11: 46000
A12: Goodwill | B12: 7080000 | D12: Total liabilities | E12: =SUM(E6:E11) -> 68090000
A13: Intangible assets | B13: 4368000
A14: Other assets | B14: 2107000 | D14: Stocks, options, warrants | E14: 473000
A15: Deferred long-term asset charges | B15: 2157000 | D15: Common stock | E15: 4273000
D16: Retained earnings | E16: 25219000
D17: Treasury stock | E17: -10281000
D18: Other stockholder equity | E18: -6328000
D19: Total equity | E19: =SUM(E14:E18) -> 13356000
A20: Total assets | B20: =SUM(B8:B15) -> 81446000 | D20: Total equity and liabilities | E20: =E12+E19 -> 81446000

Sheet Page 58, top
A1: CATERPILLAR CORP., 2011 ENTERPRISE VALUE BALANCE SHEET Book values
A2: Net working capital | B2: =19533000+14544000+994000-16946000-1967000 -> 16158000 | C2: =getformula(B2) -> <-- =19533000+14544000+994000-16946000-1967000 | D2: Net financial debt | E2: =9648000+24944000-3057000 -> 31535000 | F2: =getformula(E2) -> <-- =9648000+24944000-3057000
A3: Long-term investments | B3: 13211000 | D3: Other liabilities | E3: 14539000
A4: Property, plant and equipment | B4: 14395000
A5: Goodwill | B5: 7080000 | D5: Minority interest | E5: 46000
A6: Intangible assets | B6: 4368000
A7: Other assets | B7: 2107000 | D7: Equity | E7: 13356000
A8: Deferred long-term asset charges | B8: 2157000
A9: Enterprise value | B9: =SUM(B2:B8) -> 59476000 | C9: =getformula(B9) -> <-- =SUM(B2:B8) | D9: Enterprise value | E9: =SUM(E2:E7) -> 59476000 | F9: =getformula(E9) -> <-- =SUM(E2:E7)

Sheet Caterpillar EV market
A1: CATERPILLAR CORP., 2011 ENTERPRISE VALUE BALANCE SHEET Market Values
A2: Net working capital | B2: =19533000+14544000+994000-16946000-1967000 -> 16158000 | C2: =getformula(B2) -> <-- =19533000+14544000+994000-16946000-1967000 | D2: Net financial debt | E2: =9648000+24944000-3057000 -> 31535000 | F2: =getformula(E2) -> <-- =9648000+24944000-3057000
A3: Long-term investments | B3: 13211000 | D3: Other liabilities | E3: 14539000
A4: Property, plant and equipment | B4: 14395000
A5: Goodwill | B5: 7080000 | D5: Minority interest | E5: 46000
A6: Intangible assets | B6: 4368000
A7: Other assets | B7: 2107000 | D7: Equity | E7: ='Page 58, bottom'!B4 -> 56599878.34 | F7: <-- Market cap
A8: Deferred long-term asset charges | B8: 2157000
A10: Enterprise value | B10: =SUM(B2:B8) -> 59476000 | C10: =getformula(B10) -> <-- =SUM(B2:B8) | D10: Enterprise value | E10: =SUM(E2:E7) -> 102719878.3 | F10: =getformula(E10) -> <-- =SUM(E2:E7)

Sheet Page 58, bottom
A1: CATERPILLAR VALUATION OF EQUITY AND FINANCIAL LIABILITIES: EFFICIENT MARKETS APPROACH Most figures in thousand $
A2: Number of shares outstanding | B2: =624722719/1000 -> 624722.719 | C2: <-- thousand shares
A3: Price per share | B3: 90.6 | C3: <-- 30dec2011
A4: Equity value ("Market Cap") | B4: =B2*B3 -> 56599878.34 | C4: =getformula(B4)&", thousand $" -> <-- =B2*B3, thousand $
A6: Cash and cash equivalents | B6: ='Page 57'!B3 -> 3057000
A7: Short-term debt and current portion of long-term debt | B7: ='Page 57'!E4 -> 9648000
A8: Long-term debt | B8: ='Page 57'!E8 -> 24944000
A9: Net debt | B9: =SUM(B7:B8)-B6 -> 31535000 | C9: =getformula(B9) -> <-- =SUM(B7:B8)-B6
A11: Other liabilities | B11: ='Page 58, top'!E3 -> 14539000
A13: Minority interest | B13: ='Page 57'!E11 -> 46000
A14: Preferred stock | B14: 0
A16: Enterprise value: Equity + Net debt + Minority Interest + Preferred | B16: =SUM(B4,B9,B11,B13) -> 102719878.3 | C16: =getformula(B16) -> <-- =SUM(B4,B9,B11,B13)
A18: Shares outstanding
A19: Issued | B19: 814894624
A20: Treasury stock (repurchased shares) | B20: 190171905
A21: Outstanding shares | B21: =B19-B20 -> 624722719 | C21: =getformula(B21) -> <-- =B19-B20

Sheet Page 59
A1: CATERPILLAR CORP., 2011 ENTERPRISE VALUE BALANCE SHEET Right-hand side revalued at market values Left-hand side brought into balance with right-hand side by adjusting long-term assets
A2: Net working capital | B2: =19533000+14544000+994000-16946000-1967000 -> 16158000 | C2: =getformula(B2) -> <-- =19533000+14544000+994000-16946000-1967000 | D2: Net financial debt | E2: =9648000+24944000-3057000 -> 31535000 | F2: =getformula(E2) -> <-- =9648000+24944000-3057000
A3: Long-term investments | B3: =E10-B2 -> 86561878.34 | C3: =getformula(B3) -> <-- =E10-B2 | D3: Other liabilities | E3: 14539000
A4: Property, plant and equipment
A5: Goodwill | D5: Minority interest | E5: ='Page 58, bottom'!B13 -> 46000
A6: Intangible assets
A7: Other assets | D7: Equity | E7: ='Page 58, bottom'!B4 -> 56599878.34 | F7: <-- Market cap
A8: Deferred long-term asset charges
A10: Enterprise value | B10: =SUM(B2:B8) -> 102719878.3 | C10: =getformula(B10) -> <-- =SUM(B2:B8) | D10: Enterprise value | E10: =SUM(E2:E7) -> 102719878.3 | F10: =getformula(E10) -> <-- =SUM(E2:E7)

Sheet Page 65
A1: ABC CORPORATION Consolidated Statement of Cash Flows, 2008-2012
B2: 2008 | C2: 2009 | D2: 2010 | E2: 2011 | F2: 2012
A3: Operating Activities:
A4: Net earnings | B4: 479355 | C4: 495597 | D4: 534268 | E4: 505856 | F4: 520273
A5: Adjustments to reconcile net earnings to net cash provided by operating activities
A6: Add back depreciation and amortization | B6: 41583 | C6: 47647 | D6: 46438 | E6: 45839 | F6: 46622
A7: Changes in operating assets and liabilities:
A8: Subtract increase in accounts receivable | B8: 9387 | C8: 25951 | D8: -12724 | E8: 1685 | F8: -2153
A9: Subtract increase in inventories | B9: -37630 | C9: -22780 | D9: -16247 | E9: -15780 | F9: -5517
A10: Subtract increase in prepaid expenses and other assets | B10: -52191 | C10: 13573 | D10: 16255 | E10: 14703 | F10: -2975
A11: Add increase in accounts payable, accrued expenses, pensions, and other liabilities | B11: 29612 | C11: 51172 | D11: 6757 | E11: 40541 | F11: 60255
A12: Net cash provided by operating activities | B12: =SUM(B4:B11) -> 470116 | C12: =SUM(C4:C11) -> 611160 | D12: =SUM(D4:D11) -> 574747 | E12: =SUM(E4:E11) -> 592844 | F12: =SUM(F4:F11) -> 616505 | G12: =getformula(F12) -> <-- =SUM(F4:F11)
A14: Investing Activities:
A15: Short-term investments, net | B15: -5000 | C15: -55000 | D15: 50000 | E15: -10000 | F15: 20000
A16: Purchases of property, plant and equipment | B16: -48944 | C16: -70326 | D16: -89947 | E16: -37044 | F16: -88426
A17: Proceeds from dispositions of property, plant and equipment | B17: 197 | C17: 6956 | D17: 22942 | E17: 6179 | F17: 28693
A18: Net cash used in investing activities | B18: -53747 | C18: -118370 | D18: =SUM(D15:D17) -> -17005 | E18: =SUM(E15:E17) -> -40865 | F18: =SUM(F15:F17) -> -39733 | G18: =getformula(F18) -> <-- =SUM(F15:F17)
A20: Financing Activities:
A21: Repayment of debt | B21: 0 | C21: 0 | D21: -300000 | E21: 0 | F21: -7095
A22: Proceeds from revolving credit facility borrowings | B22: 1242431 | C22: 0 | D22: 0 | E22: 0 | F22: 250000
A23: Proceeds from the issuance of stock | B23: 48286 | C23: 114276 | D23: 69375 | E23: 68214 | F23: 37855
A24: Dividends paid | B24: -332986 | C24: -344128 | D24: -361208 | E24: -367499 | F24: -378325
A25: Stock repurchased | B25: -150095 | C25: -200031 | D25: -200038 | E25: -200003 | F25: -597738
A26: Net cash used in financing activities | B26: =SUM(B21:B25) -> 807636 | C26: =SUM(C21:C25) -> -429883 | D26: =SUM(D21:D25) -> -791871 | E26: =SUM(E21:E25) -> -499288 | F26: =SUM(F21:F25) -> -695303 | G26: =getformula(F26) -> <-- =SUM(F21:F25)
A28: Changes in cash balances | B28: =B12+B18+B26 -> 1224005 | C28: =C12+C18+C26 -> 62907 | D28: =D12+D18+D26 -> -234129 | E28: =E12+E18+E26 -> 52691 | F28: =F12+F18+F26 -> -118531 | G28: =getformula(F28) -> <-- =F12+F18+F26
A30: Supplemental disclosure of cash flow information
A31: Cash paid during the period for
A32: Income taxes | B32: 255043 | C32: 175972 | D32: 314735 | E32: 283618 | F32: 305094
A33: Interest | B33: 83553 | C33: 83551 | D33: 70351 | E33: 57151 | F33: 57910
A35: Income tax rate | B35: =B32/(B4+B32) -> 0.3472817192 | C35: =C32/(C4+C32) -> 0.2620311539 | D35: =D32/(D4+D32) -> 0.3707112931 | E35: =E32/(E4+E32) -> 0.359249323 | F35: =F32/(F4+F32) -> 0.3696464724 | G35: =getformula(F35) -> <-- =F32/(F4+F32)

Sheet Page 66
A1: ABC CORPORATION CSCF rewritten to Free Cash Flow (FCF)
B2: 2008 | C2: 2009 | D2: 2010 | E2: 2011 | F2: 2012
A3: Operating Activities:
A4: Net earnings | B4: 479355 | C4: 495597 | D4: 534268 | E4: 505856 | F4: 520273
A5: Adjustments to reconcile net earnings to net cash provided by operating activities
A6: Add back depreciation and amortization | B6: 41583 | C6: 47647 | D6: 46438 | E6: 45839 | F6: 46622
A7: Changes in operating assets and liabilities:
A8: Subtract increase in accounts receivable | B8: 9387 | C8: 25951 | D8: -12724 | E8: 1685 | F8: -2153
A9: Subtract increase in inventories | B9: -37630 | C9: -22780 | D9: -16247 | E9: -15780 | F9: -5517
A10: Subtract increase in prepaid expenses and other assets | B10: -52191 | C10: 13573 | D10: 16255 | E10: 14703 | F10: -2975
A11: Add increase in accounts payable, accrued expenses, pensions and other liabilities | B11: 29612 | C11: 51172 | D11: 6757 | E11: 40541 | F11: 60255
A12: Net cash provided by operating activities | B12: =SUM(B4:B11) -> 470116 | C12: =SUM(C4:C11) -> 611160 | D12: =SUM(D4:D11) -> 574747 | E12: =SUM(E4:E11) -> 592844 | F12: =SUM(F4:F11) -> 616505 | G12: =getformula(F12) -> <-- =SUM(F4:F11)
A14: Investing Activities:
A15: Short-term investments, net
A16: Purchases of property, plant and equipment | B16: -48944 | C16: -70326 | D16: -89947 | E16: -37044 | F16: -88426
A17: Proceeds from dispositions of property, plant and equipment | B17: 197 | C17: 6956 | D17: 22942 | E17: 6179 | F17: 28693
A18: Net cash used in investing activities | B18: -53747 | C18: -118370 | D18: =SUM(D15:D17) -> -67005 | E18: =SUM(E15:E17) -> -30865 | F18: =SUM(F15:F17) -> -59733 | G18: =getformula(F18) -> <-- =SUM(F15:F17)
A20: Financing Activities:
A21: Repayment of debt
A22: Proceeds from revolving credit facility borrowings
A23: Proceeds from the issuance of stock
A24: Dividends paid
A25: Stock repurchased
A26: Net cash used in financing activities | G26: =getformula(F26) -> <--
A28: Free cash flow before interest adjustment | B28: =B12+B18+B26 -> 416369 | C28: =C12+C18+C26 -> 492790 | D28: =D12+D18+D26 -> 507742 | E28: =E12+E18+E26 -> 561979 | F28: =F12+F18+F26 -> 556772 | G28: =getformula(F28) -> <-- =F12+F18+F26
A29: Add back after-tax net interest | B29: =(1-B37)*B35 -> 54536.57052 | C29: =(1-C37)*C35 -> 61658.03506 | D29: 44271.08982 | E29: 36619.54194 | F29: =(1-F37)*F35 -> 36503.77278 | G29: =getformula(F29) -> <-- =(1-F37)*F35
A30: Free cash flow (FCF) | B30: =B28+B29 -> 470905.5705 | C30: =C28+C29 -> 554448.0351 | D30: 552013.0898 | E30: 598598.5419 | F30: 593275.7728 | G30: =getformula(F30) -> <-- =F28+F29
A32: Supplemental disclosure of cash flow information
A33: Cash paid during the period for
A34: Income taxes | B34: 255043 | C34: 175972 | D34: 314735 | E34: 283618 | F34: 305094
A35: Interest | B35: 83553 | C35: 83551 | D35: 70351 | E35: 57151 | F35: 57910
A37: Income tax rate | B37: =B34/(B4+B34) -> 0.3472817192 | C37: =C34/(C4+C34) -> 0.2620311539 | D37: =D34/(D4+D34) -> 0.3707112931 | E37: =E34/(E4+E34) -> 0.359249323 | F37: =F34/(F4+F34) -> 0.3696464724 | G37: =getformula(F37) -> <-- =F34/(F4+F34)

Sheet Page 67
A1: ABC CORP. VALUATION
A2: Free cash flow (FCF) year ending 31 Dec. 2012 | B2: 593275.7728 | C2: =getformula(B2) -> <-- 593275.77278229
A3: Growth rate of FCF, years 1-5 | B3: 0.08 | C3: <-- Optimistic about short-term growth
A4: Long-term FCF growth rate | B4: 0.05 | C4: <-- More pessimistic about long-term growth
A5: Weighted average cost of capital, WACC | B5: 0.107
A7: Year | B7: 2012 | C7: 2013 | D7: 2014 | E7: 2015 | F7: 2016 | G7: 2017
A8: FCF | C8: =B2*(1+B3) -> 640737.8346 | D8: =C8*(1+$B$3) -> 691996.8614 | E8: =D8*(1+$B$3) -> 747356.6103 | F8: =E8*(1+$B$3) -> 807145.1391 | G8: =F8*(1+$B$3) -> 871716.7502 | H8: =getformula(G8) -> <-- =F8*(1+$B$3)
A9: Terminal value | G9: =G8*(1+B4)/(B5-B4) -> 16057940.14 | H9: =getformula(G9) -> <-- =G8*(1+B4)/(B5-B4)
A10: Total | C10: =C8+C9 -> 640737.8346 | D10: =D8+D9 -> 691996.8614 | E10: =E8+E9 -> 747356.6103 | F10: =F8+F9 -> 807145.1391 | G10: =G8+G9 -> 16929656.89 | H10: =getformula(G10) -> <-- =G8+G9
A12: Enterprise value | B12: =NPV(B5,C10:G10)*(1+B5)^0.5 -> 13063055.21 | C12: =getformula(B12) -> <-- =NPV(B5,C10:G10)*(1+B5)^0.5
A13: Add back initial cash and marketable securities | B13: 73697 | C13: <-- From current balance sheet
A14: Subtract out 2012 financial liabilities | B14: 1379106 | C14: <-- From current balance sheet
A15: Equity value | B15: =B12+B13-B14 -> 11757646.21 | C15: =getformula(B15) -> <-- =B12+B13-B14
A16: Per share (1 million shares outstanding) | B16: =B15/1000000 -> 11.75764621 | C16: =getformula(B16) -> <-- =B15/1000000
A18: Data table: Share value vs LT growth and WACC
A19: ="data table header, "&CHAR(10)&gggetformula(B20) ->  | C19: Long-term growth ↓
B20: =IF(B5>B4,B16,"nmf") -> 11.75764621 | C20: 0 | D20: 0.03 | E20: 0.06 | F20: 0.09 | G20: 0.12
B21: 0.06 | C21: 13.10352704 | D21: 24.95176076 | E21: nmf | F21: nmf | G21: nmf
A22: WACC → | B22: 0.08 | C22: 9.484220704 | D22: 14.47827788 | E22: 34.45450659 | F22: nmf | G22: nmf
B23: 0.1 | C23: 7.316975387 | D23: 9.993210151 | E23: 16.68379706 | F23: 63.51790542 | G23: nmf
B24: 0.12 | C24: 5.875424596 | D24: 7.504007273 | E24: 10.76117263 | F24: 20.53266869 | G24: nmf
B25: 0.14 | C25: 4.848298768 | D25: 5.921815815 | E25: 7.800470647 | F25: 11.93351128 | G25: 28.46567381
B26: 0.16 | C26: 4.079986482 | D26: 4.827863777 | E26: 6.024467449 | F26: 8.246731411 | G26: 13.80239132
B27: 0.18 | C27: 3.484055254 | D27: 4.026737803 | E27: 4.840761626 | F27: 6.197467999 | G27: 8.910880743

Sheet Pages 68-69
A1: PRO FORMA FINANCIAL MODEL
A2: Sales growth | B2: 0.1
A3: Current assets/Sales | B3: 0.15
A4: Current liabilities/Sales | B4: 0.08
A5: Net fixed assets/Sales | B5: 0.77
A6: Costs of goods sold/Sales | B6: 0.5
A7: Depreciation rate | B7: 0.1
A8: Interest rate on debt | B8: 0.1
A9: Interest paid on cash and marketable securities | B9: 0.08
A10: Tax rate | B10: 0.4
A11: Dividend payout ratio | B11: 0.4
A13: Year | B13: 0 | C13: 1 | D13: 2 | E13: 3 | F13: 4 | G13: 5
A14: Income statement
A15: Sales | B15: =1000 -> 1000 | C15: =B15*(1+$B$2) -> 1100 | D15: =C15*(1+$B$2) -> 1210 | E15: =D15*(1+$B$2) -> 1331 | F15: =E15*(1+$B$2) -> 1464.1 | G15: =F15*(1+$B$2) -> 1610.51
A16: Costs of goods sold | B16: =-B15*$B$6 -> -500 | C16: -550 | D16: -605 | E16: -665.5 | F16: -732.05 | G16: -805.255
A17: Interest payments on debt | B17: =-$B$8*B36 -> -32 | C17: =-$B$8*(B36+C36)/2 -> -32 | D17: =-$B$8*(C36+D36)/2 -> -32 | E17: =-$B$8*(D36+E36)/2 -> -32 | F17: =-$B$8*(E36+F36)/2 -> -32 | G17: =-$B$8*(F36+G36)/2 -> -32
A18: Interest earned on cash and marketable securities | B18: =$B$9*B27 -> 6.4 | C18: =$B$9*(B27+C27)/2 -> 8.947795625 | D18: =$B$9*(C27+D27)/2 -> 14.27670286 | E18: =$B$9*(D27+E27)/2 -> 20.08091336 | F18: =$B$9*(E27+F27)/2 -> 26.37673126 | G18: =$B$9*(F27+G27)/2 -> 33.17806883
A19: Depreciation | B19: -100 | C19: =-$B$7*(C30+B30)/2 -> -116.6842105 | D19: =-$B$7*(D30+C30)/2 -> -137.4772853 | E19: =-$B$7*(E30+D30)/2 -> -161.3101575 | F19: =-$B$7*(F30+E30)/2 -> -188.5879109 | G19: =-$B$7*(G30+F30)/2 -> -219.7667804
A20: Profit before tax | B20: =SUM(B15:B19) -> 374.4 | C20: 410.2635851 | D20: 449.7994175 | E20: 492.2707559 | F20: 537.8388204 | G20: 586.6662884
A21: Taxes | B21: =-B20*$B$10 -> -149.76 | C21: -164.105434 | D21: -179.919767 | E21: -196.9083024 | F21: -215.1355282 | G21: -234.6665154
A22: Profit after tax | B22: =B21+B20 -> 224.64 | C22: 246.1581511 | D22: 269.8796505 | E22: 295.3624535 | F22: 322.7032922 | G22: 351.999773
A23: Dividends | B23: =-B22*$B$11 -> -89.856 | C23: =-$B$11*C22 -> -98.46326042 | D23: =-$B$11*D22 -> -107.9518602 | E23: =-$B$11*E22 -> -118.1449814 | F23: =-$B$11*F22 -> -129.0813169 | G23: =-$B$11*G22 -> -140.7999092
A24: Retained earnings | B24: =B23+B22 -> 134.784 | C24: 147.6948906 | D24: 161.9277903 | E24: 177.2174721 | F24: 193.6219753 | G24: 211.1998638
A26: Balance sheet
A27: Cash and marketable securities | B27: 80 | C27: =C39-C28-C32 -> 143.6948906 | D27: =D39-D28-D32 -> 213.222681 | E27: =E39-E28-E32 -> 288.8001531 | F27: =F39-F28-F32 -> 370.6181284 | G27: =G39-G28-G32 -> 458.8335922
A28: Current assets | B28: =$B$3*B15 -> 150 | C28: =C15*$B$3 -> 165 | D28: =D15*$B$3 -> 181.5 | E28: =E15*$B$3 -> 199.65 | F28: =F15*$B$3 -> 219.615 | G28: =G15*$B$3 -> 241.5765
A29: Fixed assets
A30: At cost | B30: =B32-B31 -> 1070 | C30: 1263.684211 | D30: 1485.861496 | E30: 1740.341653 | F30: 2031.416564 | G30: 2363.919045
A31: Depreciation | B31: -300 | C31: =B31+C19 -> -416.6842105 | D31: =C31+D19 -> -554.1614958 | E31: =D31+E19 -> -715.4716533 | F31: =E31+F19 -> -904.0595642 | G31: =F31+G19 -> -1123.826345
A32: Net fixed assets | B32: =B15*$B$5 -> 770 | C32: 847 | D32: 931.7 | E32: 1024.87 | F32: 1127.357 | G32: 1240.0927
A33: Total assets | B33: =B27+B28+B32 -> 1000 | C33: =C32+C28+C27 -> 1155.694891 | D33: =D32+D28+D27 -> 1326.422681 | E33: =E32+E28+E27 -> 1513.320153 | F33: =F32+F28+F27 -> 1717.590128 | G33: =G32+G28+G27 -> 1940.502792
A35: Current liabilities | B35: =B15*$B$4 -> 80 | C35: 88 | D35: 96.8 | E35: 106.48 | F35: 117.128 | G35: 128.8408
A36: Debt | B36: =B33-B35-B37-B38 -> 320 | C36: =B36 -> 320 | D36: 320 | E36: 320 | F36: 320 | G36: 320
A37: Stock | B37: 450 | C37: 450 | D37: 450 | E37: 450 | F37: 450 | G37: 450
A38: Accumulated retained earnings | B38: 150 | C38: =B38+C24 -> 297.6948906 | D38: =C38+D24 -> 459.622681 | E38: =D38+E24 -> 636.8401531 | F38: =E38+F24 -> 830.4621284 | G38: =F38+G24 -> 1041.661992
A39: Total liabilities and equity | B39: =SUM(B35:B38) -> 1000 | C39: 1155.694891 | D39: 1326.422681 | E39: 1513.320153 | F39: 1717.590128 | G39: 1940.502792
A41: Year | B41: 0 | C41: 1 | D41: 2 | E41: 3 | F41: 4 | G41: 5
A42: Free cash flow calculation
A43: Profit after tax | C43: =C22 -> 246.1581511 | D43: =D22 -> 269.8796505 | E43: =E22 -> 295.3624535 | F43: =F22 -> 322.7032922 | G43: =G22 -> 351.999773
A44: Add back depreciation | C44: =-C19 -> 116.6842105 | D44: =-D19 -> 137.4772853 | E44: =-E19 -> 161.3101575 | F44: =-F19 -> 188.5879109 | G44: =-G19 -> 219.7667804
A45: Subtract increase in current assets | C45: =-(C28-B28) -> -15 | D45: =-(D28-C28) -> -16.5 | E45: =-(E28-D28) -> -18.15 | F45: =-(F28-E28) -> -19.965 | G45: =-(G28-F28) -> -21.9615
A46: Add back increase in current liabilities | C46: =C35-B35 -> 8 | D46: =D35-C35 -> 8.8 | E46: =E35-D35 -> 9.68 | F46: =F35-E35 -> 10.648 | G46: =G35-F35 -> 11.7128
A47: Subtract increase in fixed assets at cost | C47: =-(C30-B30) -> -193.6842105 | D47: =-(D30-C30) -> -222.1772853 | E47: =-(E30-D30) -> -254.4801575 | F47: =-(F30-E30) -> -291.0749109 | G47: =-(G30-F30) -> -332.5024804
A48: Add back after-tax interest on debt | C48: =-(1-$B$10)*C17 -> 19.2 | D48: 19.2 | E48: 19.2 | F48: 19.2 | G48: 19.2
A49: Subtract after-tax interest on cash and mkt. securities | C49: -5.368677375 | D49: -8.566021718 | E49: -12.04854802 | F49: -15.82603876 | G49: -19.9068413
A50: Free cash flow | C50: =SUM(C43:C49) -> 175.9894737 | D50: =SUM(D43:D49) -> 188.1136288 | E50: =SUM(E43:E49) -> 200.8739055 | F50: =SUM(F43:F49) -> 214.2732535 | G50: =SUM(G43:G49) -> 228.3085317
A53: Valuing the firm
A54: Weighted average cost of capital | B54: 0.2
A55: Long-term free cash flow growth rate | B55: 0.05
A57: Year | B57: 0 | C57: 1 | D57: 2 | E57: 3 | F57: 4 | G57: 5
A58: FCF | C58: =C50 -> 175.9894737 | D58: =D50 -> 188.1136288 | E58: =E50 -> 200.8739055 | F58: =F50 -> 214.2732535 | G58: =G50 -> 228.3085317
A59: Terminal value | G59: =G58*(1+B55)/(B54-B55) -> 1598.159722 | H59: =getformula(G59) -> <-- =G58*(1+B55)/(B54-B55)
A60: Total | C60: =C59+C58 -> 175.9894737 | D60: =D59+D58 -> 188.1136288 | E60: =E59+E58 -> 200.8739055 | F60: =F59+F58 -> 214.2732535 | G60: =G59+G58 -> 1826.468254
A62: ="Enterprise value, present value of row "&ROW(A60) -> Enterprise value, present value of row 60 | B62: =NPV(B54,C60:G60)*(1+B54)^0.5 -> 1348.371777 | C62: =getformula(B62) -> <-- =NPV(B54,C60:G60)*(1+B54)^0.5
A63: Add in initial (year 0) cash and mkt. securities | B63: =B27 -> 80 | C63: <-- =B27
A64: Asset value in year 0 | B64: =B63+B62 -> 1428.371777 | C64: <-- =B63+B62
A65: Subtract out value of firm's debt today | B65: =-B36 -> -320 | C65: <-- =-B36
A66: Equity value | B66: =B64+B65 -> 1108.371777 | C66: <-- =B64+B65
A67: Share value (100 shares) | B67: =B66/100 -> 11.08371777 | C67: <-- =B66/100
